Cogmind - Beta 15 @@@ ROGUE MODE // 2025.06.26 @ 18:26:36 Player: LustLizard Result: Destroyed by Y-64 Sentinel with KE Penetrator Performance ------------- Evolutions (6) 3000 Regions Visited (11) 2200 Robots Destroyed (54) 270 Value Destroyed (1876) 1876 Prototype IDs (6) 120 Alien Tech Used (0) 0 Bonus (835) 835 TOTAL SCORE: 8301 Bonus ------- Follower Combat Kills 35 Entered DSFs 500 Aligned with FarCom 300 Cogmind --------- Core Integrity 0/1150 Matter 300/300 Energy 98/100 System Corruption 4% Temperature Cool (0) Movement Core (50) Location -4/Upper Caves Parts ------- > --- POWER (2) -------- (None) > --- PROPULSION (5) --- (None) > --- UTILITY (8) ------ (None) > --- WEAPON (4) ------- (None) > --- INVENTORY (5) ---- Neutrino Core Neutrino Core Armored Huge Wheel Phase Gun Peak State ------------ > --- POWER ------------ Heavy Deuterium Engine > --- PROPULSION ------- Improved Titanium Leg Improved Titanium Leg Improved Titanium Leg Improved Titanium Leg Improved Titanium Leg > --- UTILITY ---------- Improved Heat Sink Advanced Cooling System Large Storage Unit Trap Scanner Advanced Visual Processing Unit Advanced Terrain Scan Processor Improved Light Armor Plating Shield Generator > --- WEAPON ----------- Plasma Rifle Thermic Laser Wave Gun > --- INVENTORY -------- Light Nuclear Core Flexi-carbon Leg Flexi-carbon Leg Armored Wheel Armored Wheel Improved Heat Sink Superbattery Improved Terrain Scanner Improved Terrain Scan Processor Improved Particle Charger Improved Particle Charger Improved Particle Charger Heavy Ion Cannon Heavy Phase Cannon Impact Mace [Rating: 72] Favorites ----------- Power Light Nuclear Core Engine Ion Engine Power Core Light Nuclear Core Propulsion Light Treads Treads Light Treads Leg Improved Titanium Leg Wheel Armored Wheel Hover Unit Improved Antigrav System Utility Large Storage Unit Device Improved Terrain Scanner Storage Large Storage Unit Processor Advanced Visual Processing Unit Protection Improved Light Armor Plating Weapon Spread Laser Energy Gun Spread Laser Energy Cannon Heavy Ion Cannon Ballistic Gun KE Penetrator Ballistic Cannon Advanced Assault Cannon Launcher Grenade Launcher Special Weapon Field Lobotomy Kit Impact Weapon Impact Mace Build | -11 -10 -10 -10 -9 -8 -7 -6 -6 -5 -4 -4 ------- Run | Yrd Mat Min Exi Min Mat Fac Fac DSF Fac Fac Upp Slots Evolved 12 | . . . . . 4 2 2 . 2 2 . Power 1 | . . . . . . . . . . 1 . Propulsion 3 | . . . . . 1 . 1 . 1 . . Utility 6 | . . . . . 2 2 1 . 1 . . Weapon 2 | . . . . . 1 . . . . 1 . Parts Attached 66 | 7 11 1 4 . 10 15 . 2 10 6 . Power 8 | 1 1 . . . 3 1 . 1 . 1 . Engine 5 | 1 1 . . . 1 . . 1 . 1 . Core 3 | . . . . . 2 1 . . . . . Reactor . | . . . . . . . . . . . . Propulsion 16 | 2 2 . . . 2 4 . . 4 2 . Treads 4 | 1 1 . . . 2 . . . . . . Leg 6 | . . . . . . 1 . . 4 1 . Wheel 5 | 1 1 . . . . 3 . . . . . Hover 1 | . . . . . . . . . . 1 . Flight . | . . . . . . . . . . . . Utility 21 | 2 2 1 2 . 4 6 . . 3 1 . Device 11 | 1 1 . 1 . 2 2 . . 3 1 . Storage 3 | 1 1 . 1 . . . . . . . . Processor 3 | . . . . . 1 2 . . . . . Hackware . | . . . . . . . . . . . . Protection 4 | . . 1 . . 1 2 . . . . . Artifact . | . . . . . . . . . . . . Weapon 21 | 2 6 . 2 . 1 4 . 1 3 2 . Energy Gun 15 | 2 5 . 1 . 1 1 . 1 3 1 . Energy Cannon 1 | . . . . . . 1 . . . . . Ballistic Gun 1 | . . . . . . . . . . 1 . Ballistic Cannon 1 | . . . . . . 1 . . . . . Launcher 1 | . 1 . . . . . . . . . . Special Weapon 1 | . . . 1 . . . . . . . . Impact Weapon 1 | . . . . . . 1 . . . . . Slashing Weapon . | . . . . . . . . . . . . Piercing Weapon . | . . . . . . . . . . . . Special Melee Weapon . | . . . . . . . . . . . . Unidentified Prototypes 6 | . . . 3 . . 2 . 1 . . . Parts Lost 12 | . 1 . . . . 1 . . 6 4 . Power 4 | . 1 . . . . . . . 2 1 . Propulsion 3 | . . . . . . 1 . . . 2 . Utility 2 | . . . . . . . . . 2 . . Weapon 3 | . . . . . . . . . 2 1 . Highest Loss Streak 4 | . 1 . . . . 1 . . 4 3 . To Critical Strikes . | . . . . . . . . . . . . Average Backups 12 | 5 8 12 13 14 14 14 14 14 14 4 4 Power 1 | . 1 1 1 1 2 2 2 1 . . 1 Propulsion 3 | 3 3 3 3 3 3 3 5 5 4 2 1 Utility 4 | . 1 4 5 6 5 4 4 4 6 . . Weapon 3 | 1 2 3 4 4 3 3 3 3 3 1 1 Tool/Special . | . . . . . . . . . . . . Unused Backups 27 | . 1 1 . . 3 4 . 1 12 . 5 Power 3 | . . . . . . 1 . . . . 2 Propulsion 8 | . 1 1 . . 1 2 . . 2 . 1 Utility 5 | . . . . . 1 . . . 4 . . Weapon 11 | . . . . . 1 1 . 1 6 . 2 Tool/Special . | . . . . . . . . . . . . Average Slot Usage (%) 84 | . 99 100 99 100 97 99 93 92 92 7 . Engine 4 | . 13 14 14 14 2 . . . 4 . . Core 2 | . . . . . 6 7 6 5 . . . Treads 9 | . 17 17 14 15 18 10 6 6 2 . . Leg 2 | . . . . . . . . . 11 1 . Wheel 8 | . 10 10 14 12 8 11 13 13 7 . . Device 14 | . 14 13 10 14 10 21 20 20 22 . . Storage 7 | . 14 14 17 14 9 7 6 6 4 . . Processor 6 | . . . . . 7 15 13 13 10 . . Protection 2 | . . . . . 8 1 6 6 4 . . Energy Gun 17 | . 27 28 27 28 26 16 13 16 10 . . Energy Cannon 1 | . . . . . . 3 6 1 2 1 . Impact Weapon 1 | . . . . . . 1 . . 2 . . Peak Build Rating 72 | 9 12 13 21 14 27 43 43 51 72 34 6 Average Rating 29 | 5 10 12 14 14 23 35 43 44 60 9 2 On Entrance 19 | . 9 12 13 14 14 27 41 43 51 2 11 Naked Turns 571 | . . . . . . . . . 39 383 149 Heaviest Build 57 | 15 32 32 35 32 43 45 46 53 57 22 . Greatest Support 100 | 16 40 40 16 20 60 24 24 24 100 40 3 Greatest Overweight (x) 3 | . 1 1 2 1 2 3 1 2 2 1 . Average Overweight (x) 1 | . . . 1 1 1 1 1 1 1 . . Largest Inventory Capacity 15 | 8 15 15 15 15 15 15 15 15 15 5 5 Average Capacity 13 | 7 11 15 15 15 15 15 15 15 14 5 5 Most Carried 15 | 8 11 14 15 14 15 15 14 15 15 5 5 Average Carried 12 | 5 8 12 13 14 14 14 14 14 14 4 4 Final Capacity 15 | 8 15 15 15 15 15 15 15 15 5 5 5 Final Carried 15 | 6 11 13 14 14 15 15 14 15 5 5 5 Class Distribution -------------------- 35% | Skirmisher 35% | Mutant 16% | Assassin 9% | Scavenger-Skirmisher Dominant Class ---------------- Mutant | -10/Materials Mutant | -10/Mines Mutant | -10/Exiles Skirmisher | -9/Mines Skirmisher | -8/Materials Scavenger-Skirmisher | -7/Factory Skirmisher | -6/Factory Skirmisher | -6/DSF Assassin | -5/Factory Mutant | -4/Factory Mutant | -4/Upper Caves Resources | -11 -10 -10 -10 -9 -8 -7 -6 -6 -5 -4 -4 ----------- Run | Yrd Mat Min Exi Min Mat Fac Fac DSF Fac Fac Upp Matter Collected 1470 | 257 198 50 . 61 190 219 . . 411 39 45 Remotely . | . . . . . . . . . . . . Salvage Created 2144 | 22 500 58 . 61 413 247 . . 674 169 . Parts 91 | 1 28 2 . 3 27 8 . . 15 7 . Haulers Intercepted 1 | . . . . . . 1 . . . . . Recyclers Shooed 3 | . 2 . . . . . . . . 1 . Parts Field Recycled . | . . . . . . . . . . . . Retrieved Matter . | . . . . . . . . . . . . Parts Self-Destructed . | . . . . . . . . . . . . Prevented . | . . . . . . . . . . . . Kills | -11 -10 -10 -10 -9 -8 -7 -6 -6 -5 -4 -4 ------- Run | Yrd Mat Min Exi Min Mat Fac Fac DSF Fac Fac Upp Combat Hostiles Destroyed 39 | . 8 2 . 2 12 3 . . 12 . . Guns 34 | . 6 2 . 2 12 2 . . 10 . . Cannons 1 | . . . . . . 1 . . . . . AOE 2 | . 2 . . . . . . . . . . Classes Destroyed 13 | 1 4 . . 1 3 3 . . 1 . . Worker 4 | . 1 . . . . 1 . . 1 1 . Tunneler 1 | 1 . . . . . . . . . . . Hauler 1 | . . . . . . 1 . . . . . Recycler 5 | . 2 . . . 1 1 . . . 1 . Watcher 4 | . 3 . . . . . . . 1 . . Swarmer 6 | . . . . . 4 . . . 2 . . Grunt 17 | . 8 2 . 1 2 . . . 4 . . Brawler 1 | . . . . . . . . . 1 . . Duelist 1 | . . . . 1 . . . . . . . Sentry 4 | . . . . . 4 . . . . . . Specialist 2 | . . . . . 2 . . . . . . Hunter 2 | . . . . . . 1 . . 1 . . Programmer 6 | . . . . . . 2 . . 4 . . Best Kill Streak 6 | 1 6 2 . 2 4 1 . . 6 1 . Combat Bots Only 6 | . 4 2 . 2 4 1 . . 6 . . Max Kills in Single Turn 2 | 1 2 1 . 2 2 1 . . 2 1 . Gunslinging 1 | . . . . 1 1 . . . . . . Exploded 1 | . 1 . . . . . . . . . . Melee . | . . . . . . . . . . . . Uniques/NPCs Destroyed . | . . . . . . . . . . . . Combat | -11 -10 -10 -10 -9 -8 -7 -6 -6 -5 -4 -4 -------- Run | Yrd Mat Min Exi Min Mat Fac Fac DSF Fac Fac Upp Hostile Shots Fired 390 | . 46 13 . 7 35 12 . 5 159 84 29 Missed 106 | . 9 . . 2 5 4 . 1 43 31 11 Hits 284 | . 37 13 . 5 30 8 . 4 116 53 18 Melee 4 | . . . . 3 . . . . . 1 . Projectile 280 | . 37 13 . 2 30 8 . 4 116 52 18 AOE 4 | . . . . . . . . . 1 3 . Critical Strikes 10 | . . . . . 1 . . 2 4 3 . Damage Taken 5445 | . 505 149 . 127 479 119 . 239 2160 1357 310 Core 2253 | . 128 11 . 36 77 . . 54 795 842 310 Absorbed by Shields 246 | . . . . . . . . . 246 . . Ignored by Resistances 55 | . . . . . . . . . 55 . . Regen/Repaired (Parts) 169 | . 97 . . . . 72 . . . . . Core Remaining (%) 71 | 100 . . . 30 86 100 . 93 20 . . Volleys Fired 126 | 2 34 7 . 3 26 11 . . 34 9 . Largest 3 | 1 2 2 . 2 3 3 . . 3 1 . Hottest 241 | 50 115 130 . 130 195 195 . . 241 65 . Shots Fired 269 | 2 57 9 . 6 70 26 . . 90 9 . Gun 253 | 2 55 9 . 6 70 24 . . 87 . . Cannon 14 | . . . . . . 2 . . 3 9 . Launcher 2 | . 2 . . . . . . . . . . Special . | . . . . . . . . . . . . Kinetic . | . . . . . . . . . . . . Thermal 267 | 2 55 9 . 6 70 26 . . 90 9 . Explosive 2 | . 2 . . . . . . . . . . Electromagnetic . | . . . . . . . . . . . . Robot Hit Streak 20 | 1 20 4 . 7 12 12 . . 12 8 . Robot Miss Streak 6 | 1 6 3 . 2 6 6 . . 3 1 . Penetration Max . | . . . . . . . . . . . . Secondary Targets 6 | . . . . 1 2 . . . 3 . . Max Gunslinging Chain 1 | . . . . 1 1 . . . 1 . . Shots Hit Robots 214 | 1 42 9 . 6 61 25 . . 63 7 . Core Hits 184 | 1 22 12 . 11 73 29 . . 33 3 . Critical Kills . | . . . . . . . . . . . . Critical Parts Destroyed . | . . . . . . . . . . . . Critical Strikes 14 | . 4 . . . . . . . 10 . . Burn 14 | . 4 . . . . . . . 10 . . Melee Attacks 17 | . . . . . . 8 . 2 7 . . Impact 17 | . . . . . . 8 . 2 7 . . Slashing . | . . . . . . . . . . . . Piercing . | . . . . . . . . . . . . Sneak Attacks 1 | . . . . . . 1 . . . . . Combat Hostiles . | . . . . . . . . . . . . Follow-up Attacks . | . . . . . . . . . . . . Damage Inflicted 4032 | 13 801 108 . 109 841 444 . . 1530 186 . Guns 3443 | 13 588 108 . 109 841 282 . . 1502 . . Cannons 269 | . . . . . . 55 . . 28 186 . Explosions 213 | . 213 . . . . . . . . . . Melee 107 | . . . . . . 107 . . . . . Ramming . | . . . . . . . . . . . . Kinetic . | . . . . . . . . . . . . Thermal 3712 | 13 588 108 . 109 841 337 . . 1530 186 . Explosive 213 | . 213 . . . . . . . . . . Electromagnetic . | . . . . . . . . . . . . Impact 107 | . . . . . . 107 . . . . . Slashing . | . . . . . . . . . . . . Piercing . | . . . . . . . . . . . . Highest Corruption 5 | . . . . . . . . . 5 3 4 Average Corruption 2 | . . . . . . . . . 2 1 4 Corruption Purged . | . . . . . . . . . . . . Corruption Blocked . | . . . . . . . . . . . . Effects 26 | . . . . . . . . . 23 1 2 Message Errors 7 | . . . . . . . . . 7 . . Matter Fused 4 | . . . . . . . . . 4 . . Heat Flow Errors 2 | . . . . . . . . . 2 . . Energy Discharges 4 | . . . . . . . . . 3 . 1 Data Loss (minor) 6 | . . . . . . . . . 4 1 1 Data Loss (major) 1 | . . . . . . . . . 1 . . Misfires 2 | . . . . . . . . . 2 . . Overload Shots . | . . . . . . . . . . . . Overflow Damage 67 | . . . . . . 67 . . . . . Projectiles . | . . . . . . . . . . . . Explosions . | . . . . . . . . . . . . Melee 67 | . . . . . . 67 . . . . . Knockbacks 1 | . . . . . . 1 . . . . . Impact 1 | . . . . . . 1 . . . . . Kinetic . | . . . . . . . . . . . . Secondary . | . . . . . . . . . . . . Self-Inflicted Damage . | . . . . . . . . . . . . Shots . | . . . . . . . . . . . . Rammed . | . . . . . . . . . . . . Targets Rammed . | . . . . . . . . . . . . Kicked . | . . . . . . . . . . . . Crushed . | . . . . . . . . . . . . Highest Temperature 406 | 20 287 235 . 219 406 156 . . 249 3 . Average Temperature 118 | 12 128 153 . 112 148 46 . . 81 3 . Received Heat Transfer 1078 | . 279 87 . 12 171 . . . 408 100 21 Effects 4 | . . . . . 4 . . . . . . Shutdowns 1 | . . . . . 1 . . . . . . Interference 3 | . . . . . 3 . . . . . . Siege Activations . | . . . . . . . . . . . . Martial Activations . | . . . . . . . . . . . . Shielding Activations . | . . . . . . . . . . . . Robots Disrupted . | . . . . . . . . . . . . Combat Hostiles . | . . . . . . . . . . . . Robots Corrupted 1 | . . . . . . 1 . . . . . Combat Hostiles . | . . . . . . . . . . . . Parts Fried . | . . . . . . . . . . . . Impact Corruptions 2 | . . . . . . 2 . . . . . Robots Melted 2 | . . . . . . . . . 2 . . Combat Hostiles 2 | . . . . . . . . . 2 . . Parts Melted 24 | . 4 1 . . 1 . . . 18 . . Heat Transferred 7861 | 37 1850 135 . 130 1050 399 . . 4001 259 . Parts Sabotaged . | . . . . . . . . . . . . Parts Stolen . | . . . . . . . . . . . . Parts Stripped . | . . . . . . . . . . . . Power Chain Reactions . | . . . . . . . . . . . . Alert | -11 -10 -10 -10 -9 -8 -7 -6 -6 -5 -4 -4 ------- Run | Yrd Mat Min Exi Min Mat Fac Fac DSF Fac Fac Upp Maximum Alert Level . | . . . . . . . . . . . . Low Security (%) 100 | 100 100 100 . 100 100 100 100 100 100 100 . Level 1 . | . . . . . . . . . . . . Level 2 . | . . . . . . . . . . . . Level 3 . | . . . . . . . . . . . . Level 4 . | . . . . . . . . . . . . Level 5 . | . . . . . . . . . . . . High Security . | . . . . . . . . . . . . Max Security . | . . . . . . . . . . . . Peak Influence 138 | 5 136 40 . 50 90 49 23 44 138 62 . Initial 62 | . . . . . . 8 23 12 23 62 . Average 17 | . 52 14 . 15 25 2 19 27 11 8 . Influence Increases 1307 | 5 255 50 . 50 367 112 5 32 361 70 . Destroy 0b10 Robot/C 800 | . 160 40 . 40 260 60 . . 240 . . Destroy 0b10 Robot/NC 75 | 5 30 . . . 5 15 . . 10 10 . Destroy Leader 220 | . 46 10 . 10 70 32 . . 52 . . Allied During Kill 19 | . . . . . 19 . . . . . . Successful Hack 27 | . 9 . . . 13 . 5 . . . . Disable Machine 15 | . . . . . . . . . 15 . . Destroy Structure 31 | . 10 . . . . 5 . 2 14 . . Lose Combat Pursuer 120 | . . . . . . . . 30 30 60 . Influence Decreases 1307 | 5 255 50 . 50 348 82 36 6 277 166 32 Entered New Map 143 | . . . . . . 11 26 6 21 66 13 Time Decay 1055 | 5 245 50 . 50 299 71 10 . 206 100 19 Lost Part 60 | . 10 . . . . . . . 50 . . Lost Ally 49 | . . . . . 49 . . . . . . Squads Dispatched 18 | . 2 . . . 6 5 . 1 2 2 . Investigation 2 | . 1 . . . . 1 . . . . . Extermination 6 | . . . . . . 3 . . 2 1 . Reinforcement 7 | . 1 . . . 3 1 . 1 . 1 . Assault . | . . . . . . . . . . . . Garrison 3 | . . . . . 3 . . . . . . Intercept . | . . . . . . . . . . . . Searches Triggered . | . . . . . . . . . . . . Construction Impeded . | . . . . . . . . . . . . Haulers Reinforced . | . . . . . . . . . . . . Active Scanning Responses . | . . . . . . . . . . . . Cargo Convoy Interrupts 1 | . . . . . . . . . 1 . . Stealth | -11 -10 -10 -10 -9 -8 -7 -6 -6 -5 -4 -4 --------- Run | Yrd Mat Min Exi Min Mat Fac Fac DSF Fac Fac Upp Distress Signals 5 | . 1 . . . 2 . . . 2 . . Communications Jammed . | . . . . . . . . . . . . Distress Signals . | . . . . . . . . . . . . Times Spotted 92 | . 13 2 . 2 26 6 . 2 22 11 8 Peak Tracking Total 7 | . 6 2 . 2 5 1 . 1 7 6 7 Tactical Retreats 6 | . . . . . . . . 2 1 3 . Traps | -11 -10 -10 -10 -9 -8 -7 -6 -6 -5 -4 -4 ------- Run | Yrd Mat Min Exi Min Mat Fac Fac DSF Fac Fac Upp Traps Triggered 6 | . 3 . . . . . . . 2 1 . Indirectly . | . . . . . . . . . . . . Trap Hack Attempts . | . . . . . . . . . . . . Triggered . | . . . . . . . . . . . . Disarmed . | . . . . . . . . . . . . Reprogrammed . | . . . . . . . . . . . . Reused . | . . . . . . . . . . . . Traps Extracted . | . . . . . . . . . . . . Installed . | . . . . . . . . . . . . Triggered . | . . . . . . . . . . . . Machines | -11 -10 -10 -10 -9 -8 -7 -6 -6 -5 -4 -4 ---------- Run | Yrd Mat Min Exi Min Mat Fac Fac DSF Fac Fac Upp Machines Disabled 1 | . . . . . . . . . 1 . . Max in Single Turn 1 | . . . . . . . . . 1 . . Machines Repaired . | . . . . . . . . . . . . Machines Dismantled . | . . . . . . . . . . . . Machines Sabotaged . | . . . . . . . . . . . . Overloaded Fab Kills . | . . . . . . . . . . . . Hacking | -11 -10 -10 -10 -9 -8 -7 -6 -6 -5 -4 -4 --------- Run | Yrd Mat Min Exi Min Mat Fac Fac DSF Fac Fac Upp Machines Accessed 17 | . 7 . . . 2 3 1 . 3 1 . Terminals 14 | . 6 . . . 2 2 1 . 2 1 . Fabricators . | . . . . . . . . . . . . Repair Stations 3 | . 1 . . . . 1 . . 1 . . Recycling Units . | . . . . . . . . . . . . Scanalyzers . | . . . . . . . . . . . . Garrison Access . | . . . . . . . . . . . . Total Hacks 47 | . 17 . . . 9 8 2 . 8 3 . Successful 17 | . 7 . . . 6 2 1 . . 1 . Failed 30 | . 10 . . . 3 6 1 . 8 2 . Catastrophic 3 | . . . . . . 1 . . 1 1 . Database Lockouts . | . . . . . . . . . . . . Manual 20 | . 3 . 1 . 7 4 . . 3 2 . Terminals 40 | . 15 . . . 9 5 2 . 6 3 . Fabricators . | . . . . . . . . . . . . Repair Stations 7 | . 2 . . . . 3 . . 2 . . Recycling Units . | . . . . . . . . . . . . Scanalyzers . | . . . . . . . . . . . . Garrison Access . | . . . . . . . . . . . . Terminal Hacks 9 | . 4 . . . 3 . 1 . . 1 . Open DSF 1 | . . . . . . . 1 . . . . Branch Access Points 2 | . 1 . . . 1 . . . . . . Alert Level 2 | . 1 . . . . . . . . 1 . Locate Traps 3 | . 2 . . . 1 . . . . . . Hauler Manifests 1 | . . . . . 1 . . . . . . Fabricator Hacks . | . . . . . . . . . . . . Repair Station Hacks 4 | . 2 . . . . 2 . . . . . Scan Component 2 | . 1 . . . . 1 . . . . . Repair 2 | . 1 . . . . 1 . . . . . Recycling Unit Hacks . | . . . . . . . . . . . . Scanalyzer . | . . . . . . . . . . . . Garrison Access Hacks . | . . . . . . . . . . . . Unauthorized Hacks 4 | . 1 . . . 3 . . . . . . Terminals 4 | . 1 . . . 3 . . . . . . Assimilate 2 | . . . . . 2 . . . . . . Botnet 2 | . 1 . . . 1 . . . . . . Fabricators . | . . . . . . . . . . . . Repair Stations . | . . . . . . . . . . . . Recycling Units . | . . . . . . . . . . . . Scanalyzers . | . . . . . . . . . . . . Garrison Access . | . . . . . . . . . . . . Data Cores Recovered . | . . . . . . . . . . . . Used . | . . . . . . . . . . . . Hacking Detections 15 | . 6 . . . 2 3 . . 3 1 . Full Trace Events 1 | . . . . . . 1 . . . . . Feedback Events . | . . . . . . . . . . . . Feedback Blocked . | . . . . . . . . . . . . Robot Schematics Acquired . | . . . . . . . . . . . . Robots Built . | . . . . . . . . . . . . Authchips . | . . . . . . . . . . . . Time . | . . . . . . . . . . . . Total Robot Build Rating . | . . . . . . . . . . . . Part Schematics Acquired . | . . . . . . . . . . . . Parts Built . | . . . . . . . . . . . . Authchips . | . . . . . . . . . . . . Time . | . . . . . . . . . . . . Total Part Build Rating . | . . . . . . . . . . . . Parts Repaired 2 | . 1 . . . . 1 . . . . . Time 64 | . 26 . . . . 38 . . . . . Parts Recycled . | . . . . . . . . . . . . Recycled Matter . | . . . . . . . . . . . . Retrieved Matter . | . . . . . . . . . . . . Retrieved Components . | . . . . . . . . . . . . Parts Scanalyzed . | . . . . . . . . . . . . Part Schematics Acquired . | . . . . . . . . . . . . Parts Damaged . | . . . . . . . . . . . . Bothacking | -11 -10 -10 -10 -9 -8 -7 -6 -6 -5 -4 -4 ------------ Run | Yrd Mat Min Exi Min Mat Fac Fac DSF Fac Fac Upp Used RIF Installer . | . . . . . . . . . . . . Robots Hacked . | . . . . . . . . . . . . Non-combat . | . . . . . . . . . . . . Combat . | . . . . . . . . . . . . Robot Hacks Applied . | . . . . . . . . . . . . Relay Couplers Released . | . . . . . . . . . . . . Fabnet Peak Effective % . | . . . . . . . . . . . . Robots Rewired . | . . . . . . . . . . . . Allies Hacked . | . . . . . . . . . . . . Hacks Repelled . | . . . . . . . . . . . . Allies | -11 -10 -10 -10 -9 -8 -7 -6 -6 -5 -4 -4 -------- Run | Yrd Mat Min Exi Min Mat Fac Fac DSF Fac Fac Upp Total Allies 3 | . . . . 3 . . . . . . . Largest Group 3 | . . . . 3 3 . . . . . . Highest-Rated Group 40 | . . . . 40 40 . . . . . . Highest-Rated Ally 16 | . . . . 16 16 . . . . . . Total Orders . | . . . . . . . . . . . . Ally Attacks 16 | . . . . . 16 . . . . . . Total Damage 204 | . . . . . 204 . . . . . . Kills 1 | . . . . . 1 . . . . . . Allies Corrupted . | . . . . . . . . . . . . Allies Melted . | . . . . . . . . . . . . Intel | -11 -10 -10 -10 -9 -8 -7 -6 -6 -5 -4 -4 ------- Run | Yrd Mat Min Exi Min Mat Fac Fac DSF Fac Fac Upp Active Infowar (turns) 5880 | 20 707 132 459 162 1165 1458 32 164 1581 . . Optics 4181 | . . . . . 946 1458 32 164 1581 . . Terrain 5228 | 20 707 132 459 162 795 1441 32 164 1316 . . Traps 3030 | . . . . . . 1253 32 164 1581 . . Robot Analysis Total . | . . . . . . . . . . . . Derelict Logs Recovered . | . . . . . . . . . . . . Drone Launches . | . . . . . . . . . . . . Drone Recoveries . | . . . . . . . . . . . . Exploration | -11 -10 -10 -10 -9 -8 -7 -6 -6 -5 -4 -4 ------------- Run | Yrd Mat Min Exi Min Mat Fac Fac DSF Fac Fac Upp Turns Passed 7233 | 79 785 166 631 162 1165 1458 32 164 1620 821 150 Spaces Moved 4653 | 52 523 92 504 127 524 949 30 74 936 676 166 Core 618 | 10 . . . . . . . . 76 366 166 Treads 119 | . 43 8 . 2 52 14 . . . . . Legs 348 | . . . . . . . . . 326 22 . Wheels 3280 | 42 480 84 504 125 472 935 30 74 534 . . Hover 288 | . . . . . . . . . . 288 . Flight . | . . . . . . . . . . . . Fastest Speed 50 | 50 100 115 115 115 115 105 105 105 50 50 50 Average Speed 109 | 90 114 118 118 116 132 116 105 107 126 63 50 Slowest Speed 270 | 100 160 160 130 240 163 250 105 120 270 130 50 Overloaded Moves . | . . . . . . . . . . . . Propulsion Burnouts . | . . . . . . . . . . . . Robots Hopped . | . . . . . . . . . . . . Potential Cave-ins 2 | . . . . . . 2 . . . . . Cave-ins Triggered . | . . . . . . . . . . . . Exploration Rate (%) 33 | 4 81 21 91 20 38 21 1 71 23 12 22 Regions Visited 11 Branch Regions 4 Pre-discovered Areas 1 | . . . . 1 . . . . . . . Known Exits Taken 2 | . 1 . . . . . 1 . . . . Unknown Exits Taken 8 | 1 . 1 1 1 1 1 . . 1 1 . Scrap Searched . | . . . . . . . . . . . . Spaces Dug 16 | . . . . . . 7 . 2 7 . . Terrain Destroyed 26 | . 10 . . . . 7 . 2 7 . . Melee 16 | . . . . . . 7 . 2 7 . . Projectile . | . . . . . . . . . . . . AOE 10 | . 10 . . . . . . . . . . Terrain Rammed . | . . . . . . . . . . . . Walls Destroyed . | . . . . . . . . . . . . Machines Disabled . | . . . . . . . . . . . . Actions | -11 -10 -10 -10 -9 -8 -7 -6 -6 -5 -4 -4 --------- Run | Yrd Mat Min Exi Min Mat Fac Fac DSF Fac Fac Upp Total 6520 | 82 653 137 538 133 943 1265 30 157 1288 1059 235 Wait 1434 | 9 51 30 23 2 351 227 . 68 259 351 63 Move 4642 | 51 522 91 503 126 523 948 29 73 935 675 166 Hop . | . . . . . . . . . . . . Pick Up 108 | 13 19 3 3 . 15 22 . 5 17 9 2 Fast Attach . | . . . . . . . . . . . . Attach 61 | 7 8 . 2 . 8 13 1 3 9 10 . Detach 2 | . 1 . . . . . . . . 1 . Swap 66 | . 9 5 5 2 10 18 . 2 15 . . Drop 64 | . 9 1 2 . 10 18 . 4 12 4 4 Fire 126 | 2 34 7 . 3 26 11 . . 34 9 . Melee 17 | . . . . . . 8 . 2 7 . . Ram . | . . . . . . . . . . . . Kick . | . . . . . . . . . . . . Crush . | . . . . . . . . . . . . Escape Stasis . | . . . . . . . . . . . . Rewire . | . . . . . . . . . . . . Trap . | . . . . . . . . . . . . Miscellaneous . | . . . . . . . . . . . . Route ------- -11/Scrapyard -10/Materials (discovered 3 exits: [*Mat] / *Min x2) -10/Mines -10/Exiles (discovered 2 exits: [*Min x2]) -9/Mines -8/Materials (discovered 2 exits: *Fac x2) -7/Factory (discovered 3 exits: *Fac x3) -6/Factory -6/DSF -5/Factory -4/Factory -4/Upper Caves History --------- Turn | Location | Event 13 | -11/Scrapyard | Discovered new exit (range 15) 80 | -11/Scrapyard | Entered Materials 316 | -10/Materials | Build established: Mutant 385 | -10/Materials | Core integrity fell below 50% 499 | -10/Materials | Discovered new exit (range 8) 517 | -10/Materials | Identified exit to Mines 838 | -10/Materials | Repaired Lgt. Treads 865 | -10/Materials | Entered Mines 924 | -10/Mines | Assembled infested the area 929 | -10/Mines | Assisted by a Guerilla fighting off Assembled 1026 | -10/Mines | Deemed a non-threat by the Exiles lab entrance 1026 | -10/Mines | Discovered new exit (range 5) 1031 | -10/Mines | Entered Exiles 1046 | -10/Exiles | Discovered new exit (range 15) 1059 | -10/Exiles | Met 8R-AWN 1079 | -10/Exiles | Met EX-HEX 1140 | -10/Exiles | Met EX-DEC 1157 | -10/Exiles | Visited The Gauntlet 1339 | -10/Exiles | Discovered new exit (range 14) 1419 | -10/Exiles | Met EX-BIN 1436 | -10/Exiles | Aligned with FarCom system 1437 | -10/Exiles | Given EX-Vault access code 1464 | -10/Exiles | Opened EX-Vault 1482 | -10/Exiles | Found Prototype Special Weapon 1483 | -10/Exiles | Identified Field Lobotomy Kit 1486 | -10/Exiles | Found Prototype Device 1487 | -10/Exiles | Identified Skeleton Box 1495 | -10/Exiles | Found Prototype Storage 1496 | -10/Exiles | Identified Superbattery 1526 | -10/Exiles | Warned to stay clear of 0b10 Research branches 1662 | -10/Exiles | Left Exiles lab with Superbattery 1662 | -10/Exiles | Entered Mines 1695 | -9/Mines | Assisted by bots powering up and referring to "LRC-V3" 1705 | -9/Mines | Discovered new exit (range 11) 1706 | -9/Mines | Learned location of Storage (-9) 1824 | -9/Mines | Entered Materials 1824 | -8/Materials | Accompanied by 3 allies 1824 | -8/Materials | Evolved 4 slots: Propulsion x1, Utility x2, Weapon x1 1965 | -8/Materials | Build established: Skirmisher 2079 | -8/Materials | Discovered new exit (range 8) 2130 | -8/Materials | Garrison activated, responded to threat 2491 | -8/Materials | Discovered new exit (range 20) 2989 | -8/Materials | Entered Factory 2989 | -7/Factory | Evolved 2 slots: Utility x2 3278 | -7/Factory | Build established: Scavenger-Skirmisher 3778 | -7/Factory | Repaired Arm. Treads 3956 | -7/Factory | Build established: Skirmisher 4150 | -7/Factory | Discovered new exit (range 8) 4189 | -7/Factory | Discovered new exit (range 20) 4365 | -7/Factory | Build established: Assassin 4430 | -7/Factory | Discovered new exit (range 11) 4447 | -7/Factory | Entered another Factory area 4447 | -6/Factory | Evolved 2 slots: Propulsion x1, Utility x1 4478 | -6/Factory | Identified exit to DSF 4479 | -6/Factory | Entered DSF 4507 | -6/DSF | Additional patrols routed to DSF 4555 | -6/DSF | Discovered new exit (range 20) 4643 | -6/DSF | Entered Factory 4643 | -5/Factory | Evolved 2 slots: Propulsion x1, Utility x1 5534 | -5/Factory | Cargo convoy interrupted 6224 | -5/Factory | Released all parts (13) 6231 | -5/Factory | Discovered new exit (range 16) 6249 | -5/Factory | Core integrity fell below 50% 6253 | -5/Factory | Lost 4 parts (1p1u2w) 6263 | -5/Factory | Entered another Factory area 6263 | -4/Factory | Evolved 2 slots: Power x1, Weapon x1 6513 | -4/Factory | Build established: Mutant 6720 | -4/Factory | Assembled infested ambush trap array 7017 | -4/Factory | Lost 3 parts (2n1w) 7017 | -4/Factory | Core integrity fell below 50% 7042 | -4/Factory | Discovered new exit (range 15) 7084 | -4/Factory | Entered Upper Caves 7223 | -4/Upper Caves | Core integrity fell below 20% 7234 | -4/Upper Caves | Destroyed by Y-64 Sentinel with KE Penetrator Last Messages --------------- 07032_ Critical hit (Burn: +50). 07039_ System corrupted: Component data lost. 07042_ EXIT=FOUND 07057_ Acquired Arm. Huge Wheel. 07059_ ALERT: Cargo convoy en route, clear transfer corridor. [Achievement: Streaker] LOCATION=UNKNOWN GOAL=ESCAPE 07084_ Dropped Flexi-carbon Leg. 07085_ Dropped Imp. Titanium Leg. 07121_ Acquired 42 matter. 07128_ Dropped Imp. Treads. 07129_ Acquired Neutrino Core. 07130_ Dropped Disruptor Cannon. 07131_ Acquired Neutrino Core. 07134_ Acquired 3 matter. 07179_ System corrupted: Component data lost. 07200_ System corrupted: Energy discharge (-28). 07234_ Penetrated by Slug. Map ----- +----------------------------------------------------+ | | | | | | | | | | | ?????????????????????????????????????????????????? | | ?????????????????????????????????????????????????? | | ?????????????????????????????????????????????????? | | ?????????????????????????????????????????????????? | | ?????????????????????????????????????????????????? | | ?????????????????????????????????????????????????? | | ?????????????????????????????????????????????????? | | ?????????????????????????????????????????????????? | | ?????????????????????????????????????????????????? | | ?????????????????????????????????????????????????? | | ?????????????????????????????????????????????????? | | ?????????????????????????????????????????????????? | | ?????????????????????????????????????????????????? | | ?????????????????????????????????????????????????? | | ???????????? ??##??????####??????????????????????? | | ???????????? # ###### ##?????????#####???????? | | ???????????Y #????????# #???????? | | ??????????? #??????## #?####???? | | ?????????? #??##### #?## #???? | | ?????????? ##?# #??# ##??? | | ??????????????# @ #?# $ ##?# ###? | | ?????????????????#### ### # ### ## | | ????????????????????## ss # ### # | | ?????????????????????## ## # #### | | ??????????????????????##?# ##### ##?# | | ????????????????????????# #?# #### | | ?????????????????????? #?## | | ?????????????????????# # #??## ## # | | ?????????????????????# # ???# ## ### | | ???????????????????? $ ?# ???####### ###?# | | ???????????????????" ?? #????????## ##???# | | ??????????????????"""?? ##?????????# #????# | | ??????????????????""??? ##????????? ???# | | ?????????????????????? ##?????????? ??? | | ????????????????????? ??????????? ##?? | | ?????????????????????? ????????????? #??? | | ???????????????????????? ????????????? #??? | | ????????????????????????????????????????? #??? | | ????????????????????????????????????????? #??? | | ?????????????????????????????????????????? ## #??# | | ??????????????????????????????????????????#???#### | | ?????????????????????????????????????????????## | | ?????????????????????????????????????????????# | | ?????????????????????????????????????????????## # | | ??????????????????????????????????????????????#### | +----------------------------------------------------+ Best States ------------- Heat Dissipation 85 Energy Generation 18 Energy Capacity 1750 Matter Stores 300 Matter Capacity 300 Sight Range 20 Terrain Scan Range 16 Terrain Scan Density 210 Armor Coverage 150 Resistance: TH 25 Evasion (%) 55 Recoil Reduction 3 Particle Charging 20 Item Schematics ----------------- None Robot Schematics ------------------ None Fabricated ------------ Nothing Repaired ---------- Lgt. Treads | 30% | -10/Materials Arm. Treads | 76% | -7/Factory Alien Tech Used ----------------- None Achievements -------------- Streaker Challenges ------------ None Game ------ Seed PhasingSystemBarrier Manual? 0 Play Time 01:59:40 Cumulative 143.4 hours Start 2025.06.24 @ 18:04:00 End 2025.06.26 @ 18:26:36 Sessions 5 Manual Loads 0 Difficulty Rogue Special Mode None Game No. 137 Rogue 137 Adventurer 0 Explorer 0 Win Type - Total 1 Types 1/0/0/0/0/0/0/0/0/0 Lore% 41 Gallery% 43 Achievement% 38 Wizard Run 0 Options --------- Layout 1 ASCII 0 Keyboard 0 Movement Numpad Keybinds 0 Fullscreen 1 Font 24/Smallcaps Map View 50x35 Zoom Use 0% Tactical HUD 1 Map Filters NONE Filters NONE Steam 1 RUN: 1aac9457-2906-43c9-b2b5-2ce91c1e40a2